Body Name,Body,Service Level,Expense Type,Expense Code,Narrative,Date,Transaction Number,Amount,Capital and Revenue,Supplier Name,Supplier ID
South Ribble Council,http://statistics.data.gov.uk/doc/local-authority/30UN,Housing,Cap Expend Other,C750,DFG WORKS TO BATHROOM AT Address REDACTED,08/02/2019,0000444988,"5,850.50",Revenue,ABBI PROPERTY SERVICES LTD,131357
South Ribble Council,http://statistics.data.gov.uk/doc/local-authority/30UN,Housing,Cap Expend Other,C750,"DFG WORKS TO BATHROOM AT Address REDACTEDCOST 4350.00",27/02/2019,0000445297,"4,350.00",Revenue,ABBI PROPERTY SERVICES LTD,131357
South Ribble Council,http://statistics.data.gov.uk/doc/local-authority/30UN,Scrutiny,Peripherals,4242,ipad 10.5`` wifi + celluar 64gb,06/02/2019,0000444196,605.00,Revenue,ACS SYSTEMS UK LTD,00070166
South Ribble Council,http://statistics.data.gov.uk/doc/local-authority/30UN,Scrutiny,Peripherals,4242,Folio Case,06/02/2019,0000444196,132.00,Revenue,ACS SYSTEMS UK LTD,00070166
South Ribble Council,http://statistics.data.gov.uk/doc/local-authority/30UN,Scrutiny,Peripherals,4242,Apple care 2yr,06/02/2019,0000444196,129.00,Revenue,ACS SYSTEMS UK LTD,00070166
South Ribble Council,http://statistics.data.gov.uk/doc/local-authority/30UN,Area 3 - Parks/Leyland East West,Capital Expenditure,C230,Replacement of existing display house. (Timber frame with aluminium messenger frame),22/02/2019,0000444883,"32,252.50",Revenue,Alitex Ltd,132080
South Ribble Council,http://statistics.data.gov.uk/doc/local-authority/30UN,Area 2 - Waste Transport/Eastern & Central Teams,External Contractors Charges,4570,SPEC REPAIR (Check & overhaul metering valve) - YP11 CFM - JFC11727 - TH,22/02/2019,0000445185,258.30,Revenue,Alliance Electronics Limited,132713
South Ribble Council,http://statistics.data.gov.uk/doc/local-authority/30UN,Revenues Plus,Financial,4811,ret chqs,08/02/2019,0000444877,4.20,Revenue,ALLPAY LTD,00122276
South Ribble Council,http://statistics.data.gov.uk/doc/local-authority/30UN,Revenues Plus,Financial,4811,post off,08/02/2019,0000444877,730.68,Revenue,ALLPAY LTD,00122276
South Ribble Council,http://statistics.data.gov.uk/doc/local-authority/30UN,Revenues Plus,Financial,4811,paypoint,08/02/2019,0000444877,132.46,Revenue,ALLPAY LTD,00122276
South Ribble Council,http://statistics.data.gov.uk/doc/local-authority/30UN,Revenues Plus,Financial,4811,webcon,08/02/2019,0000444877,47.72,Revenue,ALLPAY LTD,00122276
South Ribble Council,http://statistics.data.gov.uk/doc/local-authority/30UN,Environmental Health,Other Misc,4851,"Consultancy Services � South Ribble Partnership Community Strategy ,5 Days (Visit) 900 per day,5 Days (Remote) 750 per day ",13/02/2019,0000444828,"2,400.00",Revenue,Almond Tree Strategic Consulting Ltd,132578
South Ribble Council,http://statistics.data.gov.uk/doc/local-authority/30UN,Property Services,Cleaning and Domestic Supplies,2711,To supply cleaning stock for offices and kitchen @ SRBC,27/02/2019,0000445257,385.48,Revenue,AMTOLL LTD,130945
South Ribble Council,http://statistics.data.gov.uk/doc/local-authority/30UN,Shared Assurance Services,Employee Related Insurance,1800,SRBC - AON Broker & Consultancy fees 2019,15/02/2019,0000444987,"1,000.00",Revenue,Aon UK Limited Accounts Division,132142
South Ribble Council,http://statistics.data.gov.uk/doc/local-authority/30UN,Shared Assurance Services,Employee Related Insurance,1800,SRBC - AON Broker & Consultancy fees 2019,27/02/2019,0000445010,"2,125.00",Revenue,Aon UK Limited Accounts Division,132142
South Ribble Council,http://statistics.data.gov.uk/doc/local-authority/30UN,Shared Assurance Services,Employee Related Insurance,1800,"SRBC - AON Insurance Renewal 2019 - General Property, Commercial Property and Business Interruption, Contract works, Computers, Crime ",13/02/2019,0000445011,"2,366.24",Revenue,Aon UK Limited Accounts Division,132142
South Ribble Council,http://statistics.data.gov.uk/doc/local-authority/30UN,Shared Assurance Services,Employee Related Insurance,1800,"SRBC - AON Insurance Renewal 2019 - General Property, Commercial Property and Business Interruption, Contract works, Computers, Crime ",13/02/2019,0000445012,"3,724.00",Revenue,Aon UK Limited Accounts Division,132142
South Ribble Council,http://statistics.data.gov.uk/doc/local-authority/30UN,Shared Assurance Services,Employee Related Insurance,1800,"SRBC - AON Insurance Renewal 2019 - General Property, Commercial Property and Business Interruption, Contract works, Computers, Crime",13/02/2019,0000445013,667.95,Revenue,Aon UK Limited Accounts Division,132142
South Ribble Council,http://statistics.data.gov.uk/doc/local-authority/30UN,Shared Assurance Services,Employee Related Insurance,1800,"SRBC - AON Insurance Renewal 2019 - General Property, Commercial Property and Business Interruption, Contract works, Computers, Crime ",13/02/2019,0000445014,"4,390.40",Revenue,Aon UK Limited Accounts Division,132142
South Ribble Council,http://statistics.data.gov.uk/doc/local-authority/30UN,Shared Assurance Services,Employee Related Insurance,1800,"SRBC - AON Insurance Renewal 2019 - General Property, Commercial Property and Business Interruption, Contract works, Computers, Crime ",13/02/2019,0000445015,"51,875.91",Revenue,Aon UK Limited Accounts Division,132142
South Ribble Council,http://statistics.data.gov.uk/doc/local-authority/30UN,Housing,Cap Grant- Improve Grants,C570,DFG WORKS TO BATHROOM  ATAddress REDACTED -COST OF GRANT 4225.00,13/02/2019,0000444989,"4,225.00",Revenue,APG DOMESTIC SERVICES,00061463
South Ribble Council,http://statistics.data.gov.uk/doc/local-authority/30UN,Environmental Health,Operational Furniture & Equip,4010,"Sundstrom -1 xEA Fan Unit ,1 x EA  Full Hood&Hose ,1 x EA Harness for SR-500 ,1 x BOX Pre Filters  ,1 x EA P3 Ptcle",06/02/2019,0000444773,657.04,Revenue,ARCO,00014096
South Ribble Council,http://statistics.data.gov.uk/doc/local-authority/30UN,HR & Communications,Training Expense-Course Fees,1402,Course/Event: Council Tax - How the system works Date: 29th January 2019 Delegate: Name REDACTED,13/02/2019,0000444885,135.00,Revenue,ARVATO GOVERNMENT SERVICES LTD,130314
South Ribble Council,http://statistics.data.gov.uk/doc/local-authority/30UN,HR & Communications,Training Expense-Course Fees,1402,"Course/Event: Council Tax - How the system works ,Date: 29th January 2019,Delegate: Name REDACTED",13/02/2019,0000444885,135.00,Revenue,ARVATO GOVERNMENT SERVICES LTD,130314
South Ribble Council,http://statistics.data.gov.uk/doc/local-authority/30UN,HR & Communications,Training Expense-Course Fees,1402,"Course/Event: Local Taxation Recovery & Enforcement - The full storyDate: 31st January 2019Delegate: Name REDACTED",15/02/2019,0000444886,135.00,Revenue,ARVATO GOVERNMENT SERVICES LTD,130314
South Ribble Council,http://statistics.data.gov.uk/doc/local-authority/30UN,HR & Communications,Training Expense-Course Fees,1402,"Course/Event: Local Taxation Recovery & Enforcement - The full story,Date: 31st January 2019,Delegate: Name Redacted",15/02/2019,0000444886,135.00,Revenue,ARVATO GOVERNMENT SERVICES LTD,130314
South Ribble Council,http://statistics.data.gov.uk/doc/local-authority/30UN,HR & Communications,Training Expense-Course Fees,1402,"Course/Event: Local Taxation Recovery & Enforcement - The full story,Date: 31st January 2019,Delegate: Name Redacted",08/02/2019,0000444887,135.00,Revenue,ARVATO GOVERNMENT SERVICES LTD,130314
South Ribble Council,http://statistics.data.gov.uk/doc/local-authority/30UN,HR & Communications,Training Expense-Course Fees,1402,"Course/Event: Council Tax - How the system works ,Date: 29th January 2019,Delegate: Name REDACTED",08/02/2019,0000444887,135.00,Revenue,ARVATO GOVERNMENT SERVICES LTD,130314
South Ribble Council,http://statistics.data.gov.uk/doc/local-authority/30UN,Housing,Cap Grant- Improve Grants,C570,"Grant payment towards the cost of disrepair work required at 134 Dunkirk Lane, Leyland, PR26 7SQ AS PER QUOTE SUPPLIED Cost of Grant  ",01/02/2019,0000444771,"10,513.00",Revenue,ASH BARN CONSTRUCTION LTD,00081278
South Ribble Council,http://statistics.data.gov.uk/doc/local-authority/30UN,Housing,Cap Grant- Improve Grants,C570,"DFG WORKS TO BATHROOM AND RAMPAddress REDACTED AS PER QUOTE 6919.00,CLIENT CONTRIBUTION OF 272.19",01/02/2019,0000444774,"6,646.81",Revenue,ASH BARN CONSTRUCTION LTD,00081278
South Ribble Council,http://statistics.data.gov.uk/doc/local-authority/30UN,Area 1 - Penwortham Western Parishes,Other Misc,4851,20 x FIXED PENALTY NOTICES BOOKS - AS PER YOUR ESTIMATE NO. 141415,15/02/2019,0000445084,296.00,Revenue,B & D PRINT SERVICES LTD,00015134
South Ribble Council,http://statistics.data.gov.uk/doc/local-authority/30UN,Shared Financial Services,Balance Sheet,0030,11th jan 2019,13/02/2019,0000444216,"4,817.92",Revenue,Barclays Bank Plc,130842
South Ribble Council,http://statistics.data.gov.uk/doc/local-authority/30UN,Shared Financial Services,Balance Sheet,0030,,13/02/2019,0000444217,"2,999.64",Revenue,Barclays Bank Plc,130842
South Ribble Council,http://statistics.data.gov.uk/doc/local-authority/30UN,Shared Financial Services,Balance Sheet,0030,,13/02/2019,0000444218,"3,090.11",Revenue,Barclays Bank Plc,130842
South Ribble Council,http://statistics.data.gov.uk/doc/local-authority/30UN,Shared Financial Services,Balance Sheet,0030,,13/02/2019,0000444903,"2,991.09",Revenue,Barclays Bank Plc,130842
South Ribble Council,http://statistics.data.gov.uk/doc/local-authority/30UN,Area 3 - Parks/Leyland East West,Grounds Maint Cntrctrs Chgs,4657,Works to provide power feeds to 2no CCTV cameras.Worden park as per quote ref SRBC-18/QUOTE,25/02/2019,0000443645,895.63,Revenue,BELEC ELECTRICAL LTD,130290
South Ribble Council,http://statistics.data.gov.uk/doc/local-authority/30UN,Area 2 - Waste Transport/Eastern & Central Teams,Other Misc,48EF,"Install light and RCD socket in MOT waiting roomLabour 384.00 ,Materials 85.20",15/02/2019,0000444776,465.70,Revenue,BELEC ELECTRICAL LTD,130290
South Ribble Council,http://statistics.data.gov.uk/doc/local-authority/30UN,Area 2 - Waste Transport/Eastern & Central Teams,Other Misc,48EF,"Install extra sockets and 16 amp sockets for weldingLabour 384.00Materials 260.11",15/02/2019,0000444777,644.11,Revenue,BELEC ELECTRICAL LTD,130290
South Ribble Council,http://statistics.data.gov.uk/doc/local-authority/30UN,Property Services,Rep & Maint Premises,2020,Please attend the 3rd floor (old HR office) at the civic centre to install 8 x double sockets and remove pull switches as per quotation,08/02/2019,0000444889,536.64,Revenue,BELEC ELECTRICAL LTD,130290
South Ribble Council,http://statistics.data.gov.uk/doc/local-authority/30UN,Information Services,Capital Expenditure,C234,"To electrical work at Moss Side Comms Rooms, as per quote",25/02/2019,0000445235,"1,704.68",Revenue,BELEC ELECTRICAL LTD,130290
South Ribble Council,http://statistics.data.gov.uk/doc/local-authority/30UN,Area 2 - Waste Transport/Eastern & Central Teams,Materials General,4040,ANNUAL RENTAL CHARGES FOR 2 X OXYGEN AND 2 X ACETYLENE,06/02/2019,0000444843,586.50,Revenue,BOC GASES,00015147
South Ribble Council,http://statistics.data.gov.uk/doc/local-authority/30UN,Area 2 - Waste Transport/Eastern & Central Teams,Operational Furniture & Equip,4010,1 MASK (WORKSHOP EQUIPMENT) AW,13/02/2019,0000444992,334.78,Revenue,BOC GASES,00015147
South Ribble Council,http://statistics.data.gov.uk/doc/local-authority/30UN,Neighbourhood Admin & Support,Materials General,4040,"HANSON FAST SET POST MIX  20kg - 02110336DELIVER TO WORDEN PARK ",22/02/2019,0000445049,260.40,Revenue,C & W BERRY LTD,00015231
South Ribble Council,http://statistics.data.gov.uk/doc/local-authority/30UN,Regeneration,Operational Furniture & Equip,4010,"6 Bulldog 9128N Premier Springbok Rakes,6 Spear & Jackson 4903RSS Razorsharp Telescopic Bypass Loppers, 6 Bulldog Bypass Loppers ",27/02/2019,0000445162,343.98,Revenue,C & W BERRY LTD,00015231
South Ribble Council,http://statistics.data.gov.uk/doc/local-authority/30UN,Shared Assurance Services,Professional Fees,4512,National Fraud Initiative 2018/19 and 2019/20 fees.,22/02/2019,0000445099,"2,200.00",Revenue,Cabinet Office SSCLAccounts Receivable,132109
South Ribble Council,http://statistics.data.gov.uk/doc/local-authority/30UN,Revenues Plus,Professional Fees,4520,"Revenues, Benefits and Business Rates End of Year webinars",06/02/2019,0000444827,900.00,Revenue,CAPITA BUSINESS SERVICES LTD,00122179
South Ribble Council,http://statistics.data.gov.uk/doc/local-authority/30UN,Environmental Health,Licence Fees,488B,4th qtr,25/02/2019,0000445176,"1,125.00",Revenue,Carr Street Community Centre,130312
South Ribble Council,http://statistics.data.gov.uk/doc/local-authority/30UN,Environmental Health,Training Expense-Course Fees,1400,3 day first aid at work courses ,06/02/2019,0000444724,340.00,Revenue,Centaur Training Services (North West) Ltd,132060
South Ribble Council,http://statistics.data.gov.uk/doc/local-authority/30UN,Housing,Contributions,4730,"Address REDACTED HW 1-31/12/2018 = 31 days @ 35.28",13/02/2019,0000444583,"1,093.68",Revenue,CHORLEY BOROUGH COUNCIL,00017352
South Ribble Council,http://statistics.data.gov.uk/doc/local-authority/30UN,Shared Financial Services,External Contractors Charges,4570,Provision of Shared Financial Services 2018/19,01/02/2019,0000444755,"450,000.00",Revenue,CHORLEY BOROUGH COUNCIL,00017352
South Ribble Council,http://statistics.data.gov.uk/doc/local-authority/30UN,Scrutiny,Training Expense-Course Fees,1406,CENTRE FOR PUBLIC SCRUTINY FINANCIAL SCRUTINY TRAINING (HALF COST),22/02/2019,0000444950,590.50,Revenue,CHORLEY BOROUGH COUNCIL,00017352
South Ribble Council,http://statistics.data.gov.uk/doc/local-authority/30UN,Shared Financial Services,Balance Sheet,0030,return of incorrect payment to SRBC,27/02/2019,0000445280,"1,752.93",Revenue,Chorley Building Society,132770
South Ribble Council,http://statistics.data.gov.uk/doc/local-authority/30UN,Area 2 - Waste Transport/Eastern & Central Teams,Materials General,4040,"1 CORNER BUMPER, 1 HEADLAMP ASSEMBLY - MX04YNL - JFC11965 - AW",25/02/2019,0000445137,349.22,Revenue,CICELEY COMMERCIALS LTD,00059381
South Ribble Council,http://statistics.data.gov.uk/doc/local-authority/30UN,HR & Communications,Payroll Suspense,1741,"12 Month Subscription Name REDACTED  01/01/2019 to 31/12/2019",13/02/2019,0000445040,325.00,Revenue,CIPFA BUSINESS LTD,00017187
South Ribble Council,http://statistics.data.gov.uk/doc/local-authority/30UN,Shared Financial Services,Peripherals,4248,CGPM006035 Civica Financials Licence Support and Maintenance 1 April 2019 to 31 March 2020,22/02/2019,0000445157,"14,974.17",Revenue,CIVICA UK LTD,00102717
South Ribble Council,http://statistics.data.gov.uk/doc/local-authority/30UN,Neighbourhood Admin & Support,Operational Furniture & Equip,4019,Repairs and sending of 21 benches in Worden Park formal gardens @ 110.00 per bench,13/02/2019,0000444952,880.00,Revenue,CJB Groundcare,132699
South Ribble Council,http://statistics.data.gov.uk/doc/local-authority/30UN,HR & Communications,Balance Sheet,0030,CHILDCARE VOUCHERS - DECEMBER 2018,13/02/2019,0000443848,"2,150.75",Revenue,COMPUTERSHARE VOUCHER SERVICES,00116499
South Ribble Council,http://statistics.data.gov.uk/doc/local-authority/30UN,HR & Communications,Balance Sheet,0030,CHILDCARE VOUCHERS - JANUARY 2019,13/02/2019,0000444243,"1,853.33",Revenue,COMPUTERSHARE VOUCHER SERVICES,00116499
South Ribble Council,http://statistics.data.gov.uk/doc/local-authority/30UN,HR & Communications,Balance Sheet,0030,CHILDCARE VOUCHERS - FEBRUARY 2019,13/02/2019,0000444911,"1,853.33",Revenue,COMPUTERSHARE VOUCHER SERVICES,00116499
South Ribble Council,http://statistics.data.gov.uk/doc/local-authority/30UN,Housing,Cap Grant- Improve Grants,C570,"DFG WORKS FOR EXTENSION FOR BEDROOM AND BATHROOM AT Address REDACTED,CUSTOMER TO FUND 3877 REMAINDER",13/02/2019,0000445067,"14,800.00",Revenue,Cornerstone Building & Maintenance Ltd,131383
South Ribble Council,http://statistics.data.gov.uk/doc/local-authority/30UN,Revenues Plus,Postage,4291,Postage for Jan - March 2019,06/02/2019,0000444822,561.36,Revenue,CRITIQOM,131053
South Ribble Council,http://statistics.data.gov.uk/doc/local-authority/30UN,Revenues Plus,Postage,4291,Postage for Jan - March 2019,15/02/2019,0000445082,409.88,Revenue,CRITIQOM,131053
South Ribble Council,http://statistics.data.gov.uk/doc/local-authority/30UN,Revenues Plus,Postage,4291,Postage for Jan - March 2019,22/02/2019,0000445142,601.79,Revenue,CRITIQOM,131053
South Ribble Council,http://statistics.data.gov.uk/doc/local-authority/30UN,Revenues Plus,Stationery,4130,Stationery for Jan - March 2019,27/02/2019,0000445275,336.00,Revenue,CRITIQOM,131053
South Ribble Council,http://statistics.data.gov.uk/doc/local-authority/30UN,Revenues Plus,Postage,4291,Postage for Jan - March 2019,27/02/2019,0000445298,402.56,Revenue,CRITIQOM,131053
South Ribble Council,http://statistics.data.gov.uk/doc/local-authority/30UN,HR & Communications,Balance Sheet,0030,"Cycle to Work SchemeEmployee:  Name REDACTED Full Bike Package",06/02/2019,0000444794,520.83,Revenue,CYCLESCHEME CO  UK,130237
South Ribble Council,http://statistics.data.gov.uk/doc/local-authority/30UN,Information Services,Agency Fees,1121,Support Engineer 14/01/19 - 25/01/19,01/02/2019,0000444756,"2,800.00",Revenue,Decipher:IT Ltd,132690
South Ribble Council,http://statistics.data.gov.uk/doc/local-authority/30UN,Information Services,Agency Fees,1121,Support Engineer days 17th Dec - 21st Dec 2018,06/02/2019,0000444892,"1,400.00",Revenue,Decipher:IT Ltd,132690
South Ribble Council,http://statistics.data.gov.uk/doc/local-authority/30UN,Information Services,Agency Fees,1121,Support Engineer Days 28/01/19 - 08/02/19,13/02/2019,0000445038,"2,240.00",Revenue,Decipher:IT Ltd,132690
South Ribble Council,http://statistics.data.gov.uk/doc/local-authority/30UN,Information Services,Agency Fees,1121,Support Engineer days 11th Feb - 22nd Feb,27/02/2019,0000445265,"2,800.00",Revenue,Decipher:IT Ltd,132690
South Ribble Council,http://statistics.data.gov.uk/doc/local-authority/30UN,Area 3 - Parks/Leyland East West,Materials General,4040,RADIATOR - VO65KPZ - 12011,22/02/2019,0000445158,835.61,Revenue,DENNIS EAGLE LTD,00019774
South Ribble Council,http://statistics.data.gov.uk/doc/local-authority/30UN,Regeneration,Other Misc,4861,2x recycled benches for Bashall Grove including concrete bolts and delivery,27/02/2019,0000445234,586.00,Revenue,EARTH ANCHORS LTD,00020925
South Ribble Council,http://statistics.data.gov.uk/doc/local-authority/30UN,Information Services,Peripherals,4260,,08/02/2019,0000444919,"2,516.68",Revenue,EE Ltd,131653
South Ribble Council,http://statistics.data.gov.uk/doc/local-authority/30UN,Information Services,Peripherals,4260,zero rated,08/02/2019,0000444919,35.88,Revenue,EE Ltd,131653
South Ribble Council,http://statistics.data.gov.uk/doc/local-authority/30UN,Property Services,Fixtures and Fittings,2611,To supply and fix blinds in Suite,08/02/2019,0000444845,615.00,Revenue,EMPORIUM BLINDS UK,131036
South Ribble Council,http://statistics.data.gov.uk/doc/local-authority/30UN,Housing,Cap Expend Other,C750,DFG WORKS TO BATHROOM WORK AT - Address REDACTED - CLIENT HAS CONTRIBUTION OF 766.25 TOWARDS COST ,27/02/2019,0000445301,"4,832.75",Revenue,EPH Energy,132712
South Ribble Council,http://statistics.data.gov.uk/doc/local-authority/30UN,Area 2 - Waste Transport/Eastern & Central Teams,Materials General,4040,4 BEARING ROD ENDS - MX04 YNL - JFC11968 - AW,13/02/2019,0000445004,291.39,Revenue,ERIKS INDUSTRIAL SERVICES,00110783
South Ribble Council,http://statistics.data.gov.uk/doc/local-authority/30UN,Area 2 - Waste Transport/Eastern & Central Teams,Materials General,4040,6 BEARINGS - BIN 388 - AW,13/02/2019,0000445004,40.31,Revenue,ERIKS INDUSTRIAL SERVICES,00110783
South Ribble Council,http://statistics.data.gov.uk/doc/local-authority/30UN,Area 2 - Waste Transport/Eastern & Central Teams,Materials General,4040,3 X REEL CYLINERS - PO16HMV - 11513,13/02/2019,0000444972,659.90,Revenue,F R SHARROCK LTD,00034539
South Ribble Council,http://statistics.data.gov.uk/doc/local-authority/30UN,Area 2 - Waste Transport/Eastern & Central Teams,External Contractors Charges,4570,Charge for manpower to deliver garden waste stickers ,08/02/2019,0000444910,"1,000.00",Revenue,FCC Environment Services (UK) Ltd,131612
South Ribble Council,http://statistics.data.gov.uk/doc/local-authority/30UN,Area 2 - Waste Transport/Eastern & Central Teams,External Contractors Charges,4570,Additional Clinical Waste January 2019,08/02/2019,0000444914,291.87,Revenue,FCC Environment Services (UK) Ltd,131612
South Ribble Council,http://statistics.data.gov.uk/doc/local-authority/30UN,Area 2 - Waste Transport/Eastern & Central Teams,External Contractors Charges,4570,RESIDUAL WASTE COLLECTIONS JANUARY 2019,22/02/2019,0000444966,"42,482.57",Revenue,FCC Environment Services (UK) Ltd,131612
South Ribble Council,http://statistics.data.gov.uk/doc/local-authority/30UN,Area 2 - Waste Transport/Eastern & Central Teams,External Contractors Charges,4570,DRY RECYCLABLE NON TERRACED JANUARY 2019,22/02/2019,0000444966,"43,506.64",Revenue,FCC Environment Services (UK) Ltd,131612
South Ribble Council,http://statistics.data.gov.uk/doc/local-authority/30UN,Area 2 - Waste Transport/Eastern & Central Teams,External Contractors Charges,4570,DRY RECYCLABLE TERRACED JANUARY 2019,22/02/2019,0000444966,"2,066.66",Revenue,FCC Environment Services (UK) Ltd,131612
South Ribble Council,http://statistics.data.gov.uk/doc/local-authority/30UN,Area 2 - Waste Transport/Eastern & Central Teams,External Contractors Charges,4570,ORGANIC WASTE NON TERRACED JANUARY 2019,22/02/2019,0000444966,"30,151.91",Revenue,FCC Environment Services (UK) Ltd,131612
South Ribble Council,http://statistics.data.gov.uk/doc/local-authority/30UN,Area 2 - Waste Transport/Eastern & Central Teams,External Contractors Charges,4570,SCHEDULE 2 PROPERTIES JANUARY 2019,22/02/2019,0000444966,"1,725.43",Revenue,FCC Environment Services (UK) Ltd,131612
South Ribble Council,http://statistics.data.gov.uk/doc/local-authority/30UN,Area 2 - Waste Transport/Eastern & Central Teams,External Contractors Charges,4570,COMMERCIAL WASTE JANUARY 2019,22/02/2019,0000444966,"6,761.80",Revenue,FCC Environment Services (UK) Ltd,131612
South Ribble Council,http://statistics.data.gov.uk/doc/local-authority/30UN,Area 2 - Waste Transport/Eastern & Central Teams,External Contractors Charges,4570,BULKY WASTE COLLECTIONS JANUARY 2019,22/02/2019,0000444966,934.56,Revenue,FCC Environment Services (UK) Ltd,131612
South Ribble Council,http://statistics.data.gov.uk/doc/local-authority/30UN,Area 2 - Waste Transport/Eastern & Central Teams,External Contractors Charges,4570,WEEE COLLECTIONS JANUARY 2019,22/02/2019,0000444966,349.34,Revenue,FCC Environment Services (UK) Ltd,131612
South Ribble Council,http://statistics.data.gov.uk/doc/local-authority/30UN,Area 2 - Waste Transport/Eastern & Central Teams,External Contractors Charges,4570,CLINICAL WASTE COLLECTIONS JANUARY 2019,22/02/2019,0000444966,594.92,Revenue,FCC Environment Services (UK) Ltd,131612
South Ribble Council,http://statistics.data.gov.uk/doc/local-authority/30UN,Area 2 - Waste Transport/Eastern & Central Teams,External Contractors Charges,4570,REPLACEMENT BINS JANUARY 2019,22/02/2019,0000444966,"5,000.00",Revenue,FCC Environment Services (UK) Ltd,131612
South Ribble Council,http://statistics.data.gov.uk/doc/local-authority/30UN,Area 2 - Waste Transport/Eastern & Central Teams,External Contractors Charges,4570,ADDITIONAL PROPERTIES JANUARY 2019,22/02/2019,0000444966,"1,880.44",Revenue,FCC Environment Services (UK) Ltd,131612
South Ribble Council,http://statistics.data.gov.uk/doc/local-authority/30UN,Area 2 - Waste Transport/Eastern & Central Teams,External Contractors Charges,4570,Additional Bulky Waste Collections January 2019,15/02/2019,0000445069,228.42,Revenue,FCC Environment Services (UK) Ltd,131612
South Ribble Council,http://statistics.data.gov.uk/doc/local-authority/30UN,Area 2 - Waste Transport/Eastern & Central Teams,External Contractors Charges,4570,Additional WEEE Collections January 2019,15/02/2019,0000445069,142.38,Revenue,FCC Environment Services (UK) Ltd,131612
South Ribble Council,http://statistics.data.gov.uk/doc/local-authority/30UN,Information Services,Peripherals,4248,Annual support & maintenance renewal for period 23/03/19 - 22/03/20,08/02/2019,0000444982,"24,798.00",Revenue,FIRMSTEP,00114022
South Ribble Council,http://statistics.data.gov.uk/doc/local-authority/30UN,Neighbourhood Admin & Support,Materials General,4040,FOOTBALL PITCH LINE MARKER PAINT 15LTS - PITCHMARKER Q2,22/02/2019,0000444846,696.00,Revenue,Fleet Line Markers Limited,131942
South Ribble Council,http://statistics.data.gov.uk/doc/local-authority/30UN,Environmental Health,Agency Fees,1121,Recruitment of Consultant for 12 wks as per G Strike,06/02/2019,0000444795,768.00,Revenue,G2 Recruitment Solutions,132684
South Ribble Council,http://statistics.data.gov.uk/doc/local-authority/30UN,Environmental Health,Agency Fees,1121,Recruitment of Consultant for 12 wks as per G Strike,15/02/2019,0000444983,512.00,Revenue,G2 Recruitment Solutions,132684
South Ribble Council,http://statistics.data.gov.uk/doc/local-authority/30UN,Environmental Health,Agency Fees,1121,Recruitment of Consultant for 12 wks as per G Strike,27/02/2019,0000445237,768.00,Revenue,G2 Recruitment Solutions,132684
South Ribble Council,http://statistics.data.gov.uk/doc/local-authority/30UN,Information Services,Capital Expenditure,C234,"Works to the server room at Moss Side Depot, as per quote",22/02/2019,0000445186,"5,877.00",Revenue,GLENN SLATER CONTRACTORS LTD,131181
South Ribble Council,http://statistics.data.gov.uk/doc/local-authority/30UN,Shared Financial Services,Financial,4816,Card transaction and interchange charges,13/02/2019,0000443735,868.32,Revenue,GLOBAL PAYMENTS (GPUK LLP),131178
South Ribble Council,http://statistics.data.gov.uk/doc/local-authority/30UN,Shared Financial Services,Financial,4816,Card transaction and interchange charges,13/02/2019,0000443735,7.00,Revenue,GLOBAL PAYMENTS (GPUK LLP),131178
South Ribble Council,http://statistics.data.gov.uk/doc/local-authority/30UN,Shared Financial Services,Financial,4816,Card transaction and interchange charges,13/02/2019,0000443736,"2,028.31",Revenue,GLOBAL PAYMENTS (GPUK LLP),131178
South Ribble Council,http://statistics.data.gov.uk/doc/local-authority/30UN,Shared Financial Services,Financial,4816,Card transaction and interchange charges,13/02/2019,0000443736,7.00,Revenue,GLOBAL PAYMENTS (GPUK LLP),131178
South Ribble Council,http://statistics.data.gov.uk/doc/local-authority/30UN,Shared Financial Services,Financial,4816,Card transaction and interchange charges,13/02/2019,0000443737,853.54,Revenue,GLOBAL PAYMENTS (GPUK LLP),131178
South Ribble Council,http://statistics.data.gov.uk/doc/local-authority/30UN,Shared Financial Services,Financial,4816,Card transaction and interchange charges,13/02/2019,0000443737,7.00,Revenue,GLOBAL PAYMENTS (GPUK LLP),131178
South Ribble Council,http://statistics.data.gov.uk/doc/local-authority/30UN,Shared Financial Services,Financial,4816,Card transaction and interchange charges,13/02/2019,0000443738,970.78,Revenue,GLOBAL PAYMENTS (GPUK LLP),131178
South Ribble Council,http://statistics.data.gov.uk/doc/local-authority/30UN,Shared Financial Services,Financial,4816,Card transaction and interchange charges,13/02/2019,0000443738,7.00,Revenue,GLOBAL PAYMENTS (GPUK LLP),131178
South Ribble Council,http://statistics.data.gov.uk/doc/local-authority/30UN,Shared Financial Services,Financial,4816,Card transaction and interchange charges,13/02/2019,0000443739,"1,959.67",Revenue,GLOBAL PAYMENTS (GPUK LLP),131178
South Ribble Council,http://statistics.data.gov.uk/doc/local-authority/30UN,Shared Financial Services,Financial,4816,Card transaction and interchange charges,13/02/2019,0000443739,7.00,Revenue,GLOBAL PAYMENTS (GPUK LLP),131178
South Ribble Council,http://statistics.data.gov.uk/doc/local-authority/30UN,Shared Financial Services,Financial,4816,Card transaction and interchange charges,13/02/2019,0000443740,913.59,Revenue,GLOBAL PAYMENTS (GPUK LLP),131178
South Ribble Council,http://statistics.data.gov.uk/doc/local-authority/30UN,Shared Financial Services,Financial,4816,Card transaction and interchange charges,13/02/2019,0000443740,7.00,Revenue,GLOBAL PAYMENTS (GPUK LLP),131178
South Ribble Council,http://statistics.data.gov.uk/doc/local-authority/30UN,Shared Financial Services,Financial,4816,Card transaction and interchange charges,13/02/2019,0000443741,"1,084.61",Revenue,GLOBAL PAYMENTS (GPUK LLP),131178
South Ribble Council,http://statistics.data.gov.uk/doc/local-authority/30UN,Shared Financial Services,Financial,4816,Card transaction and interchange charges,13/02/2019,0000443741,7.00,Revenue,GLOBAL PAYMENTS (GPUK LLP),131178
South Ribble Council,http://statistics.data.gov.uk/doc/local-authority/30UN,Shared Financial Services,Financial,4816,Card transaction and interchange charges,13/02/2019,0000443742,"1,527.42",Revenue,GLOBAL PAYMENTS (GPUK LLP),131178
South Ribble Council,http://statistics.data.gov.uk/doc/local-authority/30UN,Shared Financial Services,Financial,4816,Card transaction and interchange charges,13/02/2019,0000443742,7.00,Revenue,GLOBAL PAYMENTS (GPUK LLP),131178
South Ribble Council,http://statistics.data.gov.uk/doc/local-authority/30UN,Shared Financial Services,Financial,4816,Card transaction and interchange charges,13/02/2019,0000443743,842.93,Revenue,GLOBAL PAYMENTS (GPUK LLP),131178
South Ribble Council,http://statistics.data.gov.uk/doc/local-authority/30UN,Shared Financial Services,Financial,4816,Card transaction and interchange charges,13/02/2019,0000443743,7.00,Revenue,GLOBAL PAYMENTS (GPUK LLP),131178
South Ribble Council,http://statistics.data.gov.uk/doc/local-authority/30UN,Shared Financial Services,Financial,4816,Card transaction and interchange charges,13/02/2019,0000444377,783.13,Revenue,GLOBAL PAYMENTS (GPUK LLP),131178
South Ribble Council,http://statistics.data.gov.uk/doc/local-authority/30UN,Shared Financial Services,Financial,4816,Card transaction and interchange charges,13/02/2019,0000444377,7.00,Revenue,GLOBAL PAYMENTS (GPUK LLP),131178
South Ribble Council,http://statistics.data.gov.uk/doc/local-authority/30UN,Shared Financial Services,Financial,4816,Card transaction and interchange charges,13/02/2019,0000444378,"1,076.80",Revenue,GLOBAL PAYMENTS (GPUK LLP),131178
South Ribble Council,http://statistics.data.gov.uk/doc/local-authority/30UN,Shared Financial Services,Financial,4816,Card transaction and interchange charges,13/02/2019,0000444378,7.00,Revenue,GLOBAL PAYMENTS (GPUK LLP),131178
South Ribble Council,http://statistics.data.gov.uk/doc/local-authority/30UN,Shared Financial Services,Financial,4816,Card transaction and interchange charges,13/02/2019,0000444379,757.08,Revenue,GLOBAL PAYMENTS (GPUK LLP),131178
South Ribble Council,http://statistics.data.gov.uk/doc/local-authority/30UN,Shared Financial Services,Financial,4816,Card transaction and interchange charges,13/02/2019,0000444379,7.00,Revenue,GLOBAL PAYMENTS (GPUK LLP),131178
South Ribble Council,http://statistics.data.gov.uk/doc/local-authority/30UN,Shared Financial Services,Financial,4816,Card transaction and interchange charges,13/02/2019,0000444937,976.67,Revenue,GLOBAL PAYMENTS (GPUK LLP),131178
South Ribble Council,http://statistics.data.gov.uk/doc/local-authority/30UN,Shared Financial Services,Financial,4816,Card transaction and interchange charges,13/02/2019,0000444937,7.00,Revenue,GLOBAL PAYMENTS (GPUK LLP),131178
South Ribble Council,http://statistics.data.gov.uk/doc/local-authority/30UN,Housing,Contributions,4730,GAS APPLIANCE REPAIRS FOR WINTER WARMTH SCHEME 2018/2019,15/02/2019,0000445119,"1,662.50",Revenue,GOS Heating Ltd,131387
South Ribble Council,http://statistics.data.gov.uk/doc/local-authority/30UN,Area 2 - Waste Transport/Eastern & Central Teams,Materials General,4040,Filters from Stores,06/02/2019,0000444814,378.60,Revenue,H & J SERVICES LTD,00114446
South Ribble Council,http://statistics.data.gov.uk/doc/local-authority/30UN,Area 3 - Parks/Leyland East West,Grounds Maint Cntrctrs Chgs,4657,"Mobiuls Spares;-4 x HAG 2018620 seat & fittings @ 55 each",27/02/2019,0000442841,220.00,Revenue,HAGS SMP LTD,130596
South Ribble Council,http://statistics.data.gov.uk/doc/local-authority/30UN,Area 3 - Parks/Leyland East West,Grounds Maint Cntrctrs Chgs,4657,"Mobiuls Spares;-2 x HAG 8018621 handle & fixings @ 155 each",27/02/2019,0000442841,310.00,Revenue,HAGS SMP LTD,130596
South Ribble Council,http://statistics.data.gov.uk/doc/local-authority/30UN,Area 3 - Parks/Leyland East West,Grounds Maint Cntrctrs Chgs,4657,"Pirouette;-3 x HAG 8018890 handle & fixings @ 65 each",27/02/2019,0000442841,195.00,Revenue,HAGS SMP LTD,130596
South Ribble Council,http://statistics.data.gov.uk/doc/local-authority/30UN,Area 3 - Parks/Leyland East West,Grounds Maint Cntrctrs Chgs,4657,"Pirouette;-2 x HAG 8018891 foot stand & fixings @ 105 each",27/02/2019,0000442841,210.00,Revenue,HAGS SMP LTD,130596
South Ribble Council,http://statistics.data.gov.uk/doc/local-authority/30UN,Area 3 - Parks/Leyland East West,Grounds Maint Cntrctrs Chgs,4657,"Stepping Stones;-3 x HAG 8018887 footstand & fixings @ 210 each",27/02/2019,0000442841,630.00,Revenue,HAGS SMP LTD,130596
South Ribble Council,http://statistics.data.gov.uk/doc/local-authority/30UN,Area 3 - Parks/Leyland East West,Grounds Maint Cntrctrs Chgs,4657,Delivery,27/02/2019,0000442841,156.00,Revenue,HAGS SMP LTD,130596
South Ribble Council,http://statistics.data.gov.uk/doc/local-authority/30UN,Neighbourhood Admin & Support,Vehicle Running Costs,3132,"15,000 LITRES DIESEL (@1.0134 pence per litre)",15/02/2019,0000444864,"15,130.01",Revenue,Hall Fuels trading name of WFL (UK) Ltd,00116758
South Ribble Council,http://statistics.data.gov.uk/doc/local-authority/30UN,Shared Assurance Services,Agency Fees,1121,"Name REDACTED - interim Audit & Risk Manager for week ending period 15-10-2018 - 29-04-20181,532.90 x 24 weeks",13/02/2019,0000444947,"1,830.38",Revenue,Hays Specialist Recruitment Ltd,132288
South Ribble Council,http://statistics.data.gov.uk/doc/local-authority/30UN,Shared Assurance Services,Agency Fees,1121,"Name REDACTED - interim Audit & Risk Manager for week ending period 15-10-2018 - 29-04-20181,532.90 x 24 weeks",13/02/2019,0000444948,"1,103.69",Revenue,Hays Specialist Recruitment Ltd,132288
South Ribble Council,http://statistics.data.gov.uk/doc/local-authority/30UN,Shared Assurance Services,Agency Fees,1121,"Name REDACTED - interim Audit & Risk Manager for week ending period 15-10-2018 - 29-04-20181,532.90 x 24 weeks",13/02/2019,0000444949,"1,631.52",Revenue,Hays Specialist Recruitment Ltd,132288
South Ribble Council,http://statistics.data.gov.uk/doc/local-authority/30UN,Revenues Plus,Balance Sheet,0001,,08/02/2019,0000444917,590.00,Revenue,Heineken UK Limited,132745
South Ribble Council,http://statistics.data.gov.uk/doc/local-authority/30UN,Environmental Health,Licence Fees,488B,4th qtr,25/02/2019,0000445177,"1,000.00",Revenue,HIGHER WALTON COMMUNITY CENTRE,00070535
South Ribble Council,http://statistics.data.gov.uk/doc/local-authority/30UN,Shared Financial Services,Balance Sheet,0140,,06/02/2019,0000444336,"1,925.74",Revenue,HM REVENUE & CUSTOMS,00024837
South Ribble Council,http://statistics.data.gov.uk/doc/local-authority/30UN,Shared Financial Services,Balance Sheet,0140,,06/02/2019,0000444400,254.00,Revenue,HM REVENUE & CUSTOMS,00024837
South Ribble Council,http://statistics.data.gov.uk/doc/local-authority/30UN,Shared Financial Services,Balance Sheet,0140,,06/02/2019,0000444753,329.50,Revenue,HM REVENUE & CUSTOMS,00024837
South Ribble Council,http://statistics.data.gov.uk/doc/local-authority/30UN,Property Services,Rep & Maint Premises,2020,"LABOUR Civic Centre, Leyland PR25 1DH  and paint the old HR/new Manager`s office on 3rd floor as per quotation no 208",06/02/2019,0000444594,577.50,Revenue,Holden Building Solutions Limited,132607
South Ribble Council,http://statistics.data.gov.uk/doc/local-authority/30UN,Property Services,Rep & Maint Premises,2020,MATERIALS,06/02/2019,0000444594,133.00,Revenue,Holden Building Solutions Limited,132607
South Ribble Council,http://statistics.data.gov.uk/doc/local-authority/30UN,Revenues Plus,Stationery,4130,"25,000 envelopes - white self seal window wallet C5 for C Tax",06/02/2019,0000444847,545.00,Revenue,HOUND ENVELOPES,00113366
South Ribble Council,http://statistics.data.gov.uk/doc/local-authority/30UN,Housing,Cap Grant- Improve Grants,C570,DFG WORKS TO BATHROOM AT Address REDACTED -  SO 50% COST COVERED BY THEM AND 50% COVERED BY GRANT,15/02/2019,0000445128,"1,970.00",Revenue,HUYTON PLUMBING AND HEATING LTD,131138
South Ribble Council,http://statistics.data.gov.uk/doc/local-authority/30UN,Property Services,Rep & Maint Premises,2020,Please supply flooring for the 3rd floor HR Manager`s Office as per you quotation SPH/4975 ,06/02/2019,0000444796,"1,414.00",Revenue,HYDE FLOORING CO LTD,00023605
South Ribble Council,http://statistics.data.gov.uk/doc/local-authority/30UN,Democratic Services,Capital Expenditure,C234,Purchase of AVantGuard Auto,13/02/2019,0000444946,"13,260.00",Revenue,IDOX PLC,00104485
South Ribble Council,http://statistics.data.gov.uk/doc/local-authority/30UN,Information Services,Peripherals,4248,LALM Lalpac Enterprise Server Edition maintenance for period 18/03/19 - 17/03/20,22/02/2019,0000445207,"4,882.11",Revenue,IDOX PLC,00104485
South Ribble Council,http://statistics.data.gov.uk/doc/local-authority/30UN,Information Services,Peripherals,4248,"Annual maintenance renewal for Uniform ORB-it Service Agreement etc. for period 01/04/19 - 31/03/20, as per quote",25/02/2019,0000445262,"59,147.53",Revenue,IDOX PLC,00104485
South Ribble Council,http://statistics.data.gov.uk/doc/local-authority/30UN,Information Services,Peripherals,4248,"Consolidated Annual Maintenance for the Elections system - Year 1,for period 16/01/19 - 15/01/20, as per quote 18041",27/02/2019,0000445264,"13,259.93",Revenue,IDOX PLC,00104485
South Ribble Council,http://statistics.data.gov.uk/doc/local-authority/30UN,Development Enterprise & Comm Mgnt,Advertising,4842,"Monthly location vitality indices,performance data, missing retail  / leisure brand preferences 12 month period Set up 2,500 PlaceDashboard lic",22/02/2019,0000445175,"9,100.00",Revenue,Indestinate Ltd,132730
South Ribble Council,http://statistics.data.gov.uk/doc/local-authority/30UN,Area 1 - Penwortham Western Parishes,External Contractors Charges,4570,"Replace bus shelter - Higher Walton Road Walton le Dale.Remove existing ,Collect and install.Reinstatement to footway where required.",13/02/2019,0000443041,"1,435.00",Revenue,JJ O`GRADY LTD,131277
South Ribble Council,http://statistics.data.gov.uk/doc/local-authority/30UN,Area 1 - Penwortham Western Parishes,External Contractors Charges,4570,Traffic Management for Works,13/02/2019,0000443041,227.00,Revenue,JJ O`GRADY LTD,131277
South Ribble Council,http://statistics.data.gov.uk/doc/local-authority/30UN,Regeneration,Capital Expenditure,C230,Final Payment for renovations of civic suite,13/02/2019,0000444960,"14,002.99",Revenue,John Wade Groundworks Ltd t/a Wade Group,131568
South Ribble Council,http://statistics.data.gov.uk/doc/local-authority/30UN,Area 2 - Waste Transport/Eastern & Central Teams,Materials General,4040,"Sweeper Parts, RV14 DTZ, JFC11908",15/02/2019,0000445060,444.80,Revenue,JOHNSTON SWEEPERS LTD,00058926
South Ribble Council,http://statistics.data.gov.uk/doc/local-authority/30UN,Planning,Advertising,4841,Press notices for planning applications 2018/19,06/02/2019,0000444666,891.00,Revenue,JPI Media - JOHNSTON PUBLISHING (NORTH WEST),00011345
South Ribble Council,http://statistics.data.gov.uk/doc/local-authority/30UN,Area 1 - Penwortham Western Parishes,External Contractors Charges,4570,TRAFFIC MANAGEMENT FOR CLEANING OF THE BYPASS WITHIN THE BOROUGH (OCTOBER 2018),01/02/2019,0000444735,"4,259.00",Revenue,KAYS TRAFFIC MANAGEMENT LTD,00072342
South Ribble Council,http://statistics.data.gov.uk/doc/local-authority/30UN,Area 1 - Penwortham Western Parishes,External Contractors Charges,4570,GRASS CUTTING THROUGHOUT THE BOROUGH,01/02/2019,0000444741,"3,500.00",Revenue,KAYS TRAFFIC MANAGEMENT LTD,00072342
South Ribble Council,http://statistics.data.gov.uk/doc/local-authority/30UN,Development Enterprise & Comm Mgnt,Other Misc,4851,A review of Lostock Bridge,22/02/2019,0000445017,845.00,Revenue,Keppie Massie,131948
South Ribble Council,http://statistics.data.gov.uk/doc/local-authority/30UN,Area 2 - Waste Transport/Eastern & Central Teams,Operational Furniture & Equip,4010,1 x 5 drawer top chest (Black) Model - AP225B Combo,15/02/2019,0000445046,269.45,Revenue,KEY ENGINEERING & HYGIENE SUPPLIES LTD,00083658
South Ribble Council,http://statistics.data.gov.uk/doc/local-authority/30UN,Area 2 - Waste Transport/Eastern & Central Teams,Operational Furniture & Equip,4010,1 Telescopic Light LED102,15/02/2019,0000445046,37.95,Revenue,KEY ENGINEERING & HYGIENE SUPPLIES LTD,00083658
South Ribble Council,http://statistics.data.gov.uk/doc/local-authority/30UN,Planning,Professional Fees,4510,Investment Property Strategy 2018/19,01/02/2019,0000444798,"14,558.40",Revenue,Lambert Smith Hampton Investment Management Ltd,132594
South Ribble Council,http://statistics.data.gov.uk/doc/local-authority/30UN,Planning,Professional Fees,4510,Investment Property Strategy 2018/19,01/02/2019,0000444799,"3,314.00",Revenue,Lambert Smith Hampton Investment Management Ltd,132594
South Ribble Council,http://statistics.data.gov.uk/doc/local-authority/30UN,Area 2 - Waste Transport/Eastern & Central Teams,Materials General,4040,6 X 5 LITRE TUBS BRAKE CLEANER (@ 8.00 EACH),13/02/2019,0000445066,57.84,Revenue,lancashire Bus and Truck Parts Limited,132511
South Ribble Council,http://statistics.data.gov.uk/doc/local-authority/30UN,Area 2 - Waste Transport/Eastern & Central Teams,Operational Furniture & Equip,4016,1 OIL BUND,13/02/2019,0000445066,257.60,Revenue,lancashire Bus and Truck Parts Limited,132511
South Ribble Council,http://statistics.data.gov.uk/doc/local-authority/30UN,Planning,Other Misc,4851,Room hire for a  Planning Appeal  18th -21st December.,06/02/2019,0000444800,915.00,Revenue,LANCASHIRE FOOTBALL ASSOCIATION LTD,00028066
South Ribble Council,http://statistics.data.gov.uk/doc/local-authority/30UN,Planning,Other Misc,4851,photocopy,06/02/2019,0000444800,55.30,Revenue,LANCASHIRE FOOTBALL ASSOCIATION LTD,00028066
South Ribble Council,http://statistics.data.gov.uk/doc/local-authority/30UN,Area 2 - Waste Transport/Eastern & Central Teams,Waste Disposal Charges,5112,November 2018 - Incineration of Clinical Waste,22/02/2019,0000445096,541.31,Revenue,LANCASHIRE TEACHING FT,00120715
South Ribble Council,http://statistics.data.gov.uk/doc/local-authority/30UN,Chief Executive`s Management,Professional Fees,4513,COMMISSION OF INTERNAL AUDIT REVIEW,01/02/2019,0000444593,"2,925.00",Revenue,LANCS COUNTY COUNCIL,00041645
South Ribble Council,http://statistics.data.gov.uk/doc/local-authority/30UN,Housing,Cap Grant- Improve Grants,C570,"DFG WORKS TO SUPPLY AND INSTALL ASTAIRLIFT at Address REDACTED AS PER QUOTE OF 9303.00",01/02/2019,0000444801,"6,963.00",Revenue,LANCS COUNTY COUNCIL,00041645
South Ribble Council,http://statistics.data.gov.uk/doc/local-authority/30UN,Housing,Cap Grant- Improve Grants,C570,"DFG WORKS TO SUPPLY AND INSTALL STAIRLIFT ATAddress REDACTED  AS PER YOUR QUOTE OF 878.00",01/02/2019,0000444802,878.00,Revenue,LANCS COUNTY COUNCIL,00041645
South Ribble Council,http://statistics.data.gov.uk/doc/local-authority/30UN,Area 1 - Penwortham Western Parishes,Professional Fees,4516,"Back Office Processing October - December 2018241 PCN @ 3.45",08/02/2019,0000444895,831.45,Revenue,LANCS COUNTY COUNCIL,00041645
South Ribble Council,http://statistics.data.gov.uk/doc/local-authority/30UN,Area 1 - Penwortham Western Parishes,Professional Fees,4516,"TEC Recharges October - December 20186 @ 8.00",08/02/2019,0000444895,48.00,Revenue,LANCS COUNTY COUNCIL,00041645
South Ribble Council,http://statistics.data.gov.uk/doc/local-authority/30UN,Democratic Services,Contributions,4730,City Deal Site H12 Wesley Street Mill payable to City Deal,25/02/2019,0000445253,"39,679.92",Revenue,LANCS COUNTY COUNCIL,00041645
South Ribble Council,http://statistics.data.gov.uk/doc/local-authority/30UN,Housing,Cap Expend Other,C750,"DFG WORKS TO SUPPLY AND INSTALL A STAIRLIFT AT Address REDACTED AS PER QUOTE SUPPLIED",27/02/2019,0000445328,"2,987.00",Revenue,LANCS COUNTY COUNCIL,00041645
South Ribble Council,http://statistics.data.gov.uk/doc/local-authority/30UN,Shared Financial Services,Contributions,4730,New Homes Bonus Qtr. 4 (2018/2019),27/02/2019,0000445329,"246,049.50",Revenue,LANCS COUNTY COUNCIL,00041645
South Ribble Council,http://statistics.data.gov.uk/doc/local-authority/30UN,Planning,Printing,4125,Lease Rental for 11.06.18 - 10.06.19,01/02/2019,0000444689,"1,426.25",Revenue,LDF FINANCE No1 LTD,131373
South Ribble Council,http://statistics.data.gov.uk/doc/local-authority/30UN,Democratic Services,Training Expense-Course Fees,1406,CLLR Name REDACTED TO ATTEND THE DISTRICK COUNCILS NETWORK ON 7 & 8 FEBRUARY 2019,01/02/2019,0000444667,329.00,Revenue,LGA (LOCAL GOVERNMENT ASSOCIATION),00042851
South Ribble Council,http://statistics.data.gov.uk/doc/local-authority/30UN,Scrutiny,Peripherals,4242,"Event: LGA Annual Licensing ConferenceDate: 05/02/2019Location: LondonDelegate: Name REDACTED",13/02/2019,0000444897,199.00,Revenue,LGA (LOCAL GOVERNMENT ASSOCIATION),00042851
South Ribble Council,http://statistics.data.gov.uk/doc/local-authority/30UN,Scrutiny,Peripherals,4242,"Event: LGA Annual Licensing ConferenceDate: 05/02/2019Location: LondonDelegate: Name REDACTED",13/02/2019,0000444897,199.00,Revenue,LGA (LOCAL GOVERNMENT ASSOCIATION),00042851
South Ribble Council,http://statistics.data.gov.uk/doc/local-authority/30UN,Scrutiny,Peripherals,4242,"Event: LGA Annual Licensing ConferenceDate: 05/02/2019Location: LondonDelegate: Name REDACTED",13/02/2019,0000444897,199.00,Revenue,LGA (LOCAL GOVERNMENT ASSOCIATION),00042851
South Ribble Council,http://statistics.data.gov.uk/doc/local-authority/30UN,Regeneration,Consultancy Fees,4541,Project delivery - South Ribble HAP Extension : Business Plan Support; April 18,15/02/2019,0000444985,"5,500.01",Revenue,Local Partnerships LLP,132704
South Ribble Council,http://statistics.data.gov.uk/doc/local-authority/30UN,Area 1 - Penwortham Western Parishes,Materials General,4040,"GESPAINT 970 1K- 5LTR RAL 5015 BLUE",22/02/2019,0000445077,125.00,Revenue,LPP,00078993
South Ribble Council,http://statistics.data.gov.uk/doc/local-authority/30UN,Area 1 - Penwortham Western Parishes,Materials General,4040,"GESPAINT 970 1K - 5LTRRAL 5002 BLUE",22/02/2019,0000445077,125.00,Revenue,LPP,00078993
South Ribble Council,http://statistics.data.gov.uk/doc/local-authority/30UN,Housing,Cap Grant- Improve Grants,C570,DFG WORKS FOR LEVEL ACCESS BATHROOM Address REDACTED NEW PROGRESS PROPERTY  50% OF FULL COST OF 4910.00,08/02/2019,0000444906,"2,455.00",Revenue,MAHONEY CONTRACTORS LTD,131271
South Ribble Council,http://statistics.data.gov.uk/doc/local-authority/30UN,Neighbourhood Admin & Support,Materials General,4040,OLD MILL COURT,13/02/2019,0000444899,42.00,Revenue,Main Street Signs Ltd,131922
South Ribble Council,http://statistics.data.gov.uk/doc/local-authority/30UN,Neighbourhood Admin & Support,Materials General,4040,PROSPECT AVENUE,13/02/2019,0000444899,88.00,Revenue,Main Street Signs Ltd,131922
South Ribble Council,http://statistics.data.gov.uk/doc/local-authority/30UN,Neighbourhood Admin & Support,Materials General,4040,ALBRIGHTON ROAD,13/02/2019,0000444899,44.00,Revenue,Main Street Signs Ltd,131922
South Ribble Council,http://statistics.data.gov.uk/doc/local-authority/30UN,Neighbourhood Admin & Support,Materials General,4040,GARDEN STREET,13/02/2019,0000444899,42.00,Revenue,Main Street Signs Ltd,131922
South Ribble Council,http://statistics.data.gov.uk/doc/local-authority/30UN,Neighbourhood Admin & Support,Materials General,4040,BIRTWISTLE STREET,13/02/2019,0000444899,46.00,Revenue,Main Street Signs Ltd,131922
South Ribble Council,http://statistics.data.gov.uk/doc/local-authority/30UN,Neighbourhood Admin & Support,Materials General,4040,DOODSTONE NOOK,13/02/2019,0000444899,43.00,Revenue,Main Street Signs Ltd,131922
South Ribble Council,http://statistics.data.gov.uk/doc/local-authority/30UN,Neighbourhood Admin & Support,Materials General,4040,MARINA GROVE,13/02/2019,0000444899,82.00,Revenue,Main Street Signs Ltd,131922
South Ribble Council,http://statistics.data.gov.uk/doc/local-authority/30UN,Neighbourhood Admin & Support,Materials General,4040,EMILY STREET,13/02/2019,0000444899,41.00,Revenue,Main Street Signs Ltd,131922
South Ribble Council,http://statistics.data.gov.uk/doc/local-authority/30UN,Neighbourhood Admin & Support,Materials General,4040,GREEN DRIVE,13/02/2019,0000444899,160.00,Revenue,Main Street Signs Ltd,131922
South Ribble Council,http://statistics.data.gov.uk/doc/local-authority/30UN,Neighbourhood Admin & Support,Materials General,4040,SOUTHLANDS AVENUE,13/02/2019,0000444899,98.00,Revenue,Main Street Signs Ltd,131922
South Ribble Council,http://statistics.data.gov.uk/doc/local-authority/30UN,Neighbourhood Admin & Support,Materials General,4040,NORTH GROVE,13/02/2019,0000444899,86.00,Revenue,Main Street Signs Ltd,131922
South Ribble Council,http://statistics.data.gov.uk/doc/local-authority/30UN,Neighbourhood Admin & Support,Materials General,4040,DELIVERY CHARGE,13/02/2019,0000444899,52.00,Revenue,Main Street Signs Ltd,131922
South Ribble Council,http://statistics.data.gov.uk/doc/local-authority/30UN,Area 2 - Waste Transport/Eastern & Central Teams,External Contractors Charges,4570,1 spec repair TRA04A3 JFC11663,15/02/2019,0000445023,250.00,Revenue,MJC Auto Electrics,132514
South Ribble Council,http://statistics.data.gov.uk/doc/local-authority/30UN,Area 2 - Waste Transport/Eastern & Central Teams,External Contractors Charges,4570,SPEC REPAIR - JFC11664 - TRA01A1 - TD,15/02/2019,0000445024,250.00,Revenue,MJC Auto Electrics,132514
South Ribble Council,http://statistics.data.gov.uk/doc/local-authority/30UN,Area 3 - Parks/Leyland East West,Grounds Maint Cntrctrs Chgs,4657,"Annual Playground Inspections 2018
All sites previously inspected plus St Catherine`s Playground.",22/02/2019,0000445115,"1,755.00",Revenue,MORRAL PLAY SERVICES LTD,130490
South Ribble Council,http://statistics.data.gov.uk/doc/local-authority/30UN,Property Services,External Contractors Charges,4575,To supply meals @7 per head for 55 on 6ht February 2019 @ 16.30 to SRBC,15/02/2019,0000444997,385.00,Revenue,MOSS HOUSE FARM,00121808
South Ribble Council,http://statistics.data.gov.uk/doc/local-authority/30UN,Environmental Health,Licence Fees,488B,4th qtr,25/02/2019,0000445178,"1,375.00",Revenue,MOSS SIDE COMMUNITY FORUM,00098724
South Ribble Council,http://statistics.data.gov.uk/doc/local-authority/30UN,Legal,Legal,4821,"Chain House Lane - Appeal by WainhomesPublic Planning EnquiryAdvising in Conference - Prep 1.5 hours; con 1.5 hours",08/02/2019,0000444929,675.00,Revenue,MR IAN PONTER,131194
South Ribble Council,http://statistics.data.gov.uk/doc/local-authority/30UN,Information Services,Peripherals,4244,"PDQ Deploy Enterprise and PDQ Inventory Enterprise for period 27/03/19 - 26/03/20, as per quote",13/02/2019,0000444996,896.00,Revenue,MYPREMIER LTD,130091
South Ribble Council,http://statistics.data.gov.uk/doc/local-authority/30UN,Information Services,Peripherals,4241,"3 x Apple iPad Pro 10.5`` tablet  A 10X 64GB 3G 4G, Grey @ 635.50 each",22/02/2019,0000445124,"1,906.50",Revenue,MYPREMIER LTD,130091
South Ribble Council,http://statistics.data.gov.uk/doc/local-authority/30UN,Information Services,Peripherals,4241,3 x Smart keyboard for 10.5`` iPad Pro @ 139.50 each. As per quote.,22/02/2019,0000445124,418.50,Revenue,MYPREMIER LTD,130091
South Ribble Council,http://statistics.data.gov.uk/doc/local-authority/30UN,Area 2 - Waste Transport/Eastern & Central Teams,External Contractors Charges,4570,STEAM CLEAN - JFC11786 - VO65KRE,13/02/2019,0000444927,65.00,Revenue,NAYLORS TRANSPORT (LEYLAND) ltd,00114828
South Ribble Council,http://statistics.data.gov.uk/doc/local-authority/30UN,Area 2 - Waste Transport/Eastern & Central Teams,External Contractors Charges,4570,STEAM CLEAN - JFC11788 - VO65KPY,13/02/2019,0000444927,65.00,Revenue,NAYLORS TRANSPORT (LEYLAND) ltd,00114828
South Ribble Council,http://statistics.data.gov.uk/doc/local-authority/30UN,Area 2 - Waste Transport/Eastern & Central Teams,External Contractors Charges,4570,STEAM CLEAN - JFC11790 - VO65KPZ,13/02/2019,0000444927,65.00,Revenue,NAYLORS TRANSPORT (LEYLAND) ltd,00114828
South Ribble Council,http://statistics.data.gov.uk/doc/local-authority/30UN,Area 2 - Waste Transport/Eastern & Central Teams,External Contractors Charges,4570,STEAM CLEAN - JFC11794 - PJ62UCL,13/02/2019,0000444927,65.00,Revenue,NAYLORS TRANSPORT (LEYLAND) ltd,00114828
South Ribble Council,http://statistics.data.gov.uk/doc/local-authority/30UN,Area 2 - Waste Transport/Eastern & Central Teams,External Contractors Charges,4570,STEAM CLEAN - JFC11797 - PO13UUM,13/02/2019,0000444927,65.00,Revenue,NAYLORS TRANSPORT (LEYLAND) ltd,00114828
South Ribble Council,http://statistics.data.gov.uk/doc/local-authority/30UN,Area 2 - Waste Transport/Eastern & Central Teams,External Contractors Charges,4570,STEAM CLEAN - JFC11799 - MX04YNL,13/02/2019,0000444927,65.00,Revenue,NAYLORS TRANSPORT (LEYLAND) ltd,00114828
South Ribble Council,http://statistics.data.gov.uk/doc/local-authority/30UN,Area 2 - Waste Transport/Eastern & Central Teams,External Contractors Charges,4570,STEAM CLEAN - JFC11801 - PJ62UCH,13/02/2019,0000444927,65.00,Revenue,NAYLORS TRANSPORT (LEYLAND) ltd,00114828
South Ribble Council,http://statistics.data.gov.uk/doc/local-authority/30UN,Area 2 - Waste Transport/Eastern & Central Teams,External Contractors Charges,4570,STEAM CLENA - JFC11803 - VO65KRF,13/02/2019,0000444927,65.00,Revenue,NAYLORS TRANSPORT (LEYLAND) ltd,00114828
South Ribble Council,http://statistics.data.gov.uk/doc/local-authority/30UN,Area 2 - Waste Transport/Eastern & Central Teams,External Contractors Charges,4570,STEAM CLEAN - JFC11805 - YP11CFM,13/02/2019,0000444927,65.00,Revenue,NAYLORS TRANSPORT (LEYLAND) ltd,00114828
South Ribble Council,http://statistics.data.gov.uk/doc/local-authority/30UN,Area 2 - Waste Transport/Eastern & Central Teams,External Contractors Charges,4570,STEAM CLEAN - JFC11807 - PJ62UCM,13/02/2019,0000444927,75.00,Revenue,NAYLORS TRANSPORT (LEYLAND) ltd,00114828
South Ribble Council,http://statistics.data.gov.uk/doc/local-authority/30UN,Area 2 - Waste Transport/Eastern & Central Teams,External Contractors Charges,4570,STEAM CLEAN - JFC11811 - PJ62UCG,13/02/2019,0000444927,65.00,Revenue,NAYLORS TRANSPORT (LEYLAND) ltd,00114828
South Ribble Council,http://statistics.data.gov.uk/doc/local-authority/30UN,Area 2 - Waste Transport/Eastern & Central Teams,External Contractors Charges,4570,STEAM CLEAN - JFC11677 - PF18JOV,13/02/2019,0000444927,65.00,Revenue,NAYLORS TRANSPORT (LEYLAND) ltd,00114828
South Ribble Council,http://statistics.data.gov.uk/doc/local-authority/30UN,Regeneration,Other Misc,4851,"Installation of Christmas Lights for Tardy Gate, Longton and Walmer Green. inc. visits for dressing and undressing the trees",06/02/2019,0000444805,450.00,Revenue,NEWGATE NURSERIES,00069591
South Ribble Council,http://statistics.data.gov.uk/doc/local-authority/30UN,Neighbourhood Admin & Support,Materials General,4040,Brush channel (4 row)- 835/55,15/02/2019,0000444924,231.52,Revenue,NORTHERN MUNICIPAL SPARES LTD,00117061
South Ribble Council,http://statistics.data.gov.uk/doc/local-authority/30UN,Neighbourhood Admin & Support,Materials General,4040,4 row channel brush- C/W 4 nuts/ bolts - 835/66,15/02/2019,0000444924,212.78,Revenue,NORTHERN MUNICIPAL SPARES LTD,00117061
South Ribble Council,http://statistics.data.gov.uk/doc/local-authority/30UN,Neighbourhood Admin & Support,Materials General,4040,Schmidt mini sweeper brushes (swingo)- 71107/1,15/02/2019,0000444924,383.36,Revenue,NORTHERN MUNICIPAL SPARES LTD,00117061
South Ribble Council,http://statistics.data.gov.uk/doc/local-authority/30UN,Area 1 - Penwortham Western Parishes,Professional Fees,4514,Deployment of Officers January 2019,13/02/2019,0000444967,"1,428.22",Revenue,NSL LTD,00116868
South Ribble Council,http://statistics.data.gov.uk/doc/local-authority/30UN,Area 1 - Penwortham Western Parishes,Other Misc,4855,Cash Collection & Ring-Go Transactions January 2019,13/02/2019,0000444967,362.86,Revenue,NSL LTD,00116868
South Ribble Council,http://statistics.data.gov.uk/doc/local-authority/30UN,Area 1 - Penwortham Western Parishes,Other Misc,4855,Ring-Go Convenience Charge January 2019,13/02/2019,0000444967,188.77,Revenue,NSL LTD,00116868
South Ribble Council,http://statistics.data.gov.uk/doc/local-authority/30UN,Area 1 - Penwortham Western Parishes,Professional Fees,4526,Cash Collection from Worden Park Toilets January 2019,13/02/2019,0000444967,38.16,Revenue,NSL LTD,00116868
South Ribble Council,http://statistics.data.gov.uk/doc/local-authority/30UN,Area 3 - Parks/Leyland East West,External Contractors Charges,4570,"REINSTATEMENT WORKS TO FOOTPATH OFF MARSH WAY, PENWORTHAM. AS PER YOUR QUOTE REF. TR/T-460 OF 29.3.18",22/02/2019,0000439112,800.00,Revenue,O`Callaghan Ltd,132068
South Ribble Council,http://statistics.data.gov.uk/doc/local-authority/30UN,Area 3 - Parks/Leyland East West,Capital Expenditure,C230,"Construction of overflow car park, Moss Side Playing Field - upgrade to truck pave surfacing and additional works",22/02/2019,0000445224,"1,472.61",Revenue,O`Callaghan Ltd,132068
South Ribble Council,http://statistics.data.gov.uk/doc/local-authority/30UN,Democratic Services,Operational Furniture & Equip,4010,8098764  Left hand curved desk - oak silver legs - 720 x1600x1200mm,13/02/2019,0000444858,229.00,Revenue,OFFICE DEPOT UK LTD,00063568
South Ribble Council,http://statistics.data.gov.uk/doc/local-authority/30UN,Democratic Services,Operational Furniture & Equip,4010,8098876 Right hand curved desk  - oak silver legs - 720x1600x1200mm,13/02/2019,0000444858,229.00,Revenue,OFFICE DEPOT UK LTD,00063568
South Ribble Council,http://statistics.data.gov.uk/doc/local-authority/30UN,Democratic Services,Operational Furniture & Equip,4010,5802742 Desk High pedestals  Oak - 720x415x800mm,13/02/2019,0000444858,338.00,Revenue,OFFICE DEPOT UK LTD,00063568
South Ribble Council,http://statistics.data.gov.uk/doc/local-authority/30UN,Democratic Services,Operational Furniture & Equip,4010,4076467  Silver pedestal drawer handles,13/02/2019,0000444858,53.94,Revenue,OFFICE DEPOT UK LTD,00063568
South Ribble Council,http://statistics.data.gov.uk/doc/local-authority/30UN,Democratic Services,Operational Furniture & Equip,4010,8527210  Acoustic screen  Blue 35 x 800mm,13/02/2019,0000444858,49.49,Revenue,OFFICE DEPOT UK LTD,00063568
South Ribble Council,http://statistics.data.gov.uk/doc/local-authority/30UN,Democratic Services,Operational Furniture & Equip,4010,6270151 Screen bracket silver,13/02/2019,0000444858,26.99,Revenue,OFFICE DEPOT UK LTD,00063568
South Ribble Council,http://statistics.data.gov.uk/doc/local-authority/30UN,Regeneration,Clothing- Uniforms & Laundry,4410,Walking boots/ work boots for on site work,27/02/2019,0000445073,320.25,Revenue,OUTDOOR ACTION LTD,130008
South Ribble Council,http://statistics.data.gov.uk/doc/local-authority/30UN,Legal,Publications,4142,"OYEZ FORMS UPDATE CHARGES FOR FEB 2019 - JAN 2020:CONVEYANCING, LANDLORD & TENANT, COMPANIES, CIVIL PROCEDUR",15/02/2019,0000445072,692.38,Revenue,OYEZ PROFESSIONAL SERVICES,00054823
South Ribble Council,http://statistics.data.gov.uk/doc/local-authority/30UN,Legal,Publications,4142,"OYEZ FORMS UPDATE CHARGES FOR FEB 2019 - JAN 2020:CONVEYANCING AND CONVEYANCING TRANSACTION LAW SOCIETY",15/02/2019,0000445072,304.00,Revenue,OYEZ PROFESSIONAL SERVICES,00054823
South Ribble Council,http://statistics.data.gov.uk/doc/local-authority/30UN,Regeneration,Capital Expenditure,C230,Campus Phase 1 survey,01/02/2019,0000444746,777.00,Revenue,Pennine Ecological (Preston),132553
South Ribble Council,http://statistics.data.gov.uk/doc/local-authority/30UN,Environmental Health,Professional Fees,4522,gov fee,25/02/2019,0000445217,484.00,Revenue,Personnel Checks,132574
South Ribble Council,http://statistics.data.gov.uk/doc/local-authority/30UN,Environmental Health,Professional Fees,4522,admin fee,25/02/2019,0000445217,146.63,Revenue,Personnel Checks,132574
South Ribble Council,http://statistics.data.gov.uk/doc/local-authority/30UN,Area 2 - Waste Transport/Eastern & Central Teams,Materials General,4040,1 x 205l drum Red Antifreeze,01/02/2019,0000444511,325.95,Revenue,PILKINGTON OILS,00113531
South Ribble Council,http://statistics.data.gov.uk/doc/local-authority/30UN,Area 2 - Waste Transport/Eastern & Central Teams,Materials General,4040,1 x 199l drum 5/30 oil,01/02/2019,0000444511,276.61,Revenue,PILKINGTON OILS,00113531
South Ribble Council,http://statistics.data.gov.uk/doc/local-authority/30UN,Revenues Plus,Rents,2403,,13/02/2019,0000444680,33.33,Revenue,Premier Inn Business Account,130908
South Ribble Council,http://statistics.data.gov.uk/doc/local-authority/30UN,Revenues Plus,Rents,2403,,13/02/2019,0000444680,213.34,Revenue,Premier Inn Business Account,130908
South Ribble Council,http://statistics.data.gov.uk/doc/local-authority/30UN,Revenues Plus,Other Misc,4851,,13/02/2019,0000444680,383.34,Revenue,Premier Inn Business Account,130908
South Ribble Council,http://statistics.data.gov.uk/doc/local-authority/30UN,Information Services,Stationery,4133,"15,000 sheets Evolution Business A4 90gm, 2500 sheets Evolution Everyday A3 80gm, 30,000 sheets  Evolution Everyday A4 80gm",13/02/2019,0000444975,290.85,Revenue,PREMIER PAPER GROUP LTD,00022606
South Ribble Council,http://statistics.data.gov.uk/doc/local-authority/30UN,Information Services,Stationery,4133,"60,000 sheets Evolution Everyday A4 80gm5000 sheets Evolution Everyday A3 80gm",27/02/2019,0000445249,385.50,Revenue,PREMIER PAPER GROUP LTD,00022606
South Ribble Council,http://statistics.data.gov.uk/doc/local-authority/30UN,Regeneration,Advertising,4848,"Printing of newsletters, as per quote:Central newsletter  6600,Eastern newsletter  12000,Leyland newsletter  14500,Penwortham newsletter  10500",06/02/2019,0000444507,"1,827.00",Revenue,Preston City Council,131913
South Ribble Council,http://statistics.data.gov.uk/doc/local-authority/30UN,Area 2 - Waste Transport/Eastern & Central Teams,Materials General,4040,2 TYRES - RV14DTZ - JFC11908 - AW,13/02/2019,0000444995,516.44,Revenue,PRESTON TYRE SPECIALISTS,00109516
South Ribble Council,http://statistics.data.gov.uk/doc/local-authority/30UN,Area 2 - Waste Transport/Eastern & Central Teams,Materials General,4040,TR201,25/02/2019,0000445123,411.80,Revenue,PRESTON TYRE SPECIALISTS,00109516
South Ribble Council,http://statistics.data.gov.uk/doc/local-authority/30UN,Democratic Services,Printing,4127,"12,000 OUTGOING ENVELOPES",22/02/2019,0000445122,473.00,Revenue,PRINT IMAGE NETWORK LTD,00089199
South Ribble Council,http://statistics.data.gov.uk/doc/local-authority/30UN,Revenues Plus,Balance Sheet,0001,,08/02/2019,0000444916,"1,169.62",Revenue,PROGRESS HOUSING GRP ref:DNSOU001,00030135
South Ribble Council,http://statistics.data.gov.uk/doc/local-authority/30UN,Area 3 - Parks/Leyland East West,Grounds Maint Cntrctrs Chgs,4657,Please supply parts as per quotation ref 1809.20257,15/02/2019,0000442603,"5,709.09",Revenue,PROLUDIC LTD,00083263
South Ribble Council,http://statistics.data.gov.uk/doc/local-authority/30UN,Property Services,Rep & Maint Premises,2020,Repair the 3no unsecure manhole lids at Penwortham Leisure centre as identified in the inspection report. To provide photos when completed,22/02/2019,0000445201,240.00,Revenue,RED ROSE BUILDING MAINTENANCE,00085410
South Ribble Council,http://statistics.data.gov.uk/doc/local-authority/30UN,Property Services,Rep & Maint Premises,2020,Materials,22/02/2019,0000445201,90.00,Revenue,RED ROSE BUILDING MAINTENANCE,00085410
South Ribble Council,http://statistics.data.gov.uk/doc/local-authority/30UN,Property Services,Rep & Maint Premises,2020,"Please investigate and repair the water leak underground near the dog wash, Worden Park",22/02/2019,0000445205,300.00,Revenue,RED ROSE BUILDING MAINTENANCE,00085410
South Ribble Council,http://statistics.data.gov.uk/doc/local-authority/30UN,Property Services,Rep & Maint Premises,2020,materials,22/02/2019,0000445205,60.00,Revenue,RED ROSE BUILDING MAINTENANCE,00085410
South Ribble Council,http://statistics.data.gov.uk/doc/local-authority/30UN,Information Services,Lease Rental Charges,4036,EQVS,22/02/2019,0000445088,"1,492.80",Revenue,RICOH (UK) LTD,00082976
South Ribble Council,http://statistics.data.gov.uk/doc/local-authority/30UN,Information Services,Lease Rental Charges,4036,EQV5,22/02/2019,0000445214,"1,492.80",Revenue,RICOH (UK) LTD,00082976
South Ribble Council,http://statistics.data.gov.uk/doc/local-authority/30UN,Information Services,Lease Rental Charges,4036,1/2/19 TO 30/4/19,22/02/2019,0000445215,"4,638.79",Revenue,RICOH (UK) LTD,00082976
South Ribble Council,http://statistics.data.gov.uk/doc/local-authority/30UN,Information Services,Stationery,413A,1/11/18 TO 31/1/19,22/02/2019,0000445215,542.59,Revenue,RICOH (UK) LTD,00082976
South Ribble Council,http://statistics.data.gov.uk/doc/local-authority/30UN,Information Services,Stationery,413A,1/11/18 to 31/1/19,22/02/2019,0000445215,"4,537.24",Revenue,RICOH (UK) LTD,00082976
South Ribble Council,http://statistics.data.gov.uk/doc/local-authority/30UN,Regeneration,Other Misc,4851,Refurbishment of the Coat of Arms for the Banqueting Suite,22/02/2019,0000445163,"3,210.00",Revenue,Robin Utracik T/AS Northern Studios,132740
South Ribble Council,http://statistics.data.gov.uk/doc/local-authority/30UN,Regeneration,Other Misc,4851,Site inspections and surveys for Penwortham Vernon Carus area,01/02/2019,0000444751,"1,742.50",Revenue,RSCE Consulting Engineers,132734
South Ribble Council,http://statistics.data.gov.uk/doc/local-authority/30UN,Area 2 - Waste Transport/Eastern & Central Teams,External Contractors Charges,4570,LABOUR ONLY SUPPLIED 7th + 14th DEC 2018 @35.00 PER HOUR,13/02/2019,0000444838,420.00,Revenue,RTS Muni,132454
South Ribble Council,http://statistics.data.gov.uk/doc/local-authority/30UN,Democratic Services,External Contractors Charges,4575,"Refreshments & Buffet Lunch at Runshaw CollegeWednesday 19th December 2018,Cabinet Workshop - Budget",01/02/2019,0000444616,218.00,Revenue,RUNSHAW COLLEGE,00033637
South Ribble Council,http://statistics.data.gov.uk/doc/local-authority/30UN,Democratic Services,External Contractors Charges,4575,equip,01/02/2019,0000444616,60.00,Revenue,RUNSHAW COLLEGE,00033637
South Ribble Council,http://statistics.data.gov.uk/doc/local-authority/30UN,Regeneration,Capital Expenditure,C230,Removal / pruning of trees to create an access route 4m wide by 5m tall approx. as discussed at site visit. Stump removal not included in price.,01/02/2019,0000444837,"3,880.00",Revenue,RUSS ASPINALL T/A BEARDWOOD TREE SERVICE,00120443
South Ribble Council,http://statistics.data.gov.uk/doc/local-authority/30UN,Neighbourhood Admin & Support,External Contractors Charges,4570,"VEGETATION PRUNING AND EXCAVATION OF DITCH TO REAR OF CHAPEL LANE PROPERTIES, NEW LONGTON PLAYING FIELD",08/02/2019,0000444808,"8,950.00",Revenue,Samuel Thomas Anderton,132588
South Ribble Council,http://statistics.data.gov.uk/doc/local-authority/30UN,Property Services,Professional Fees,4510,Charges for professional fees in connection with the property portfolio of South Ribble Borough Council,08/02/2019,0000444855,"3,313.80",Revenue,Sanderson Weatherall LLP,132534
South Ribble Council,http://statistics.data.gov.uk/doc/local-authority/30UN,Property Services,Professional Fees,4510,disbursements,08/02/2019,0000444855,39.00,Revenue,Sanderson Weatherall LLP,132534
South Ribble Council,http://statistics.data.gov.uk/doc/local-authority/30UN,Property Services,Professional Fees,4510,Charges for professional fees in connection with the property portfolio of South Ribble Borough Council,08/02/2019,0000444856,"2,922.73",Revenue,Sanderson Weatherall LLP,132534
South Ribble Council,http://statistics.data.gov.uk/doc/local-authority/30UN,Property Services,Professional Fees,4510,Charges for professional fees in connection with the property portfolio of South Ribble Borough Council,08/02/2019,0000444857,"2,922.73",Revenue,Sanderson Weatherall LLP,132534
South Ribble Council,http://statistics.data.gov.uk/doc/local-authority/30UN,Property Services,Energy Costs,2303,1/1/19 to 31/1/19,22/02/2019,0000445173,907.89,Revenue,SCOTTISH HYDRO ELECTRIC,130051
South Ribble Council,http://statistics.data.gov.uk/doc/local-authority/30UN,Property Services,Energy Costs,2307,CCL,22/02/2019,0000445173,47.96,Revenue,SCOTTISH HYDRO ELECTRIC,130051
South Ribble Council,http://statistics.data.gov.uk/doc/local-authority/30UN,Property Services,Energy Costs,2304,4/1/19 to 4/2/19,22/02/2019,0000445188,"1,509.41",Revenue,SCOTTISH HYDRO ELECTRIC,130051
South Ribble Council,http://statistics.data.gov.uk/doc/local-authority/30UN,Property Services,Energy Costs,2307,CCL,22/02/2019,0000445188,153.80,Revenue,SCOTTISH HYDRO ELECTRIC,130051
South Ribble Council,http://statistics.data.gov.uk/doc/local-authority/30UN,Property Services,Energy Costs,2303,1/1/19 to 31/1/19,22/02/2019,0000445191,559.38,Revenue,SCOTTISH HYDRO ELECTRIC,130051
South Ribble Council,http://statistics.data.gov.uk/doc/local-authority/30UN,Property Services,Energy Costs,2307,CCL,22/02/2019,0000445191,28.64,Revenue,SCOTTISH HYDRO ELECTRIC,130051
South Ribble Council,http://statistics.data.gov.uk/doc/local-authority/30UN,Property Services,Energy Costs,2303,1/1/19 to 31/1/19,22/02/2019,0000445192,"3,396.18",Revenue,SCOTTISH HYDRO ELECTRIC,130051
South Ribble Council,http://statistics.data.gov.uk/doc/local-authority/30UN,Property Services,Energy Costs,2307,CCL,22/02/2019,0000445192,182.65,Revenue,SCOTTISH HYDRO ELECTRIC,130051
South Ribble Council,http://statistics.data.gov.uk/doc/local-authority/30UN,Property Services,Energy Costs,2303,1/1/19 to 31/1/19,22/02/2019,0000445194,"1,882.39",Revenue,SCOTTISH HYDRO ELECTRIC,130051
South Ribble Council,http://statistics.data.gov.uk/doc/local-authority/30UN,Property Services,Energy Costs,2307,CCL,22/02/2019,0000445194,106.41,Revenue,SCOTTISH HYDRO ELECTRIC,130051
South Ribble Council,http://statistics.data.gov.uk/doc/local-authority/30UN,Information Services,Capital Expenditure,C234,New UPS Requirement as per quote 31988,27/02/2019,0000445168,"5,400.00",Revenue,SECURE POWER LTD,131336
South Ribble Council,http://statistics.data.gov.uk/doc/local-authority/30UN,Healthy Communities,Consultancy Fees,4536,R & M for 2018/2019,08/02/2019,0000444898,"15,779.22",Revenue,SERCO LEISURE (OP) LTD,00094906
South Ribble Council,http://statistics.data.gov.uk/doc/local-authority/30UN,Democratic Services,Other Misc,4421,PRESIDING OFFICERS SUNDRIES PACKS AND PARISH CONVERSION PACKS,22/02/2019,0000444900,"1,311.35",Revenue,SHAW & SONS LTD,00034542
South Ribble Council,http://statistics.data.gov.uk/doc/local-authority/30UN,Information Services,Professional Fees,4520,Shredding of Confidential Waste 2018/19,01/02/2019,0000444714,252.94,Revenue,SHRED-IT LTD,00109134
South Ribble Council,http://statistics.data.gov.uk/doc/local-authority/30UN,Information Services,Professional Fees,4520,Shredding of Confidential Waste 2018/19,22/02/2019,0000445071,385.68,Revenue,SHRED-IT LTD,00109134
South Ribble Council,http://statistics.data.gov.uk/doc/local-authority/30UN,Planning,Operational Furniture & Equip,4010,Acrobat Pro DC for teams Team Licensing Subscription Renewal Monthly 1 User Level 2 10 - 49 1 Month,01/02/2019,0000444730,"1,112.84",Revenue,SOFTCAT LIMITED,130963
South Ribble Council,http://statistics.data.gov.uk/doc/local-authority/30UN,Information Services,Peripherals,4248,"Autocad licenses for 2yrs, 28/01/19 - 27/01/21, as per quote ref. OVREEAO10TZ7 V3",22/02/2019,0000445147,"14,718.88",Revenue,SOFTCAT LIMITED,130963
South Ribble Council,http://statistics.data.gov.uk/doc/local-authority/30UN,Healthy Communities,Consultancy Fees,4532,Leisure Services Fee 2018/2019,08/02/2019,0000444880,"16,639.56",Revenue,SOUTH RIBBLE COMMUNITY LEISURE LTD,00094210
South Ribble Council,http://statistics.data.gov.uk/doc/local-authority/30UN,Shared Financial Services,Balance Sheet,0030,monthly deductions from payroll,01/02/2019,0000444790,678.00,Revenue,SOUTH RIBBLE LABOUR PARTY LOCAL GOVERN+K259M,00120663
South Ribble Council,http://statistics.data.gov.uk/doc/local-authority/30UN,Area 2 - Waste Transport/Eastern & Central Teams,Materials General,4040,cylinder pushed throiugh as PO closed see note,25/02/2019,0000445148,700.00,Revenue,SPALDINGS,00070849
South Ribble Council,http://statistics.data.gov.uk/doc/local-authority/30UN,Area 2 - Waste Transport/Eastern & Central Teams,Materials General,4040,1 fuel tank TMF04TR JFC11869,06/02/2019,0000444815,278.30,Revenue,SPECTRUM PLANT LTD,130851
South Ribble Council,http://statistics.data.gov.uk/doc/local-authority/30UN,Regeneration,External Contractors Charges,4575,Catering for Battles Over Event 11/11/2018,06/02/2019,0000444537,"1,250.00",Revenue,St Catherines Social Enterprise Ltd,132366
South Ribble Council,http://statistics.data.gov.uk/doc/local-authority/30UN,Area 2 - Waste Transport/Eastern & Central Teams,External Contractors Charges,4570,"Loadall Training 15th February 2019, 4  new, 2 refresher",22/02/2019,0000444789,450.00,Revenue,STEPHEN WOOD TRAINING SERVICES LTD,130506
South Ribble Council,http://statistics.data.gov.uk/doc/local-authority/30UN,Development Enterprise & Comm Mgnt,Advertising,4842,"South Ribble Apprentice Factory branded materials � guide total 4,047.50
PrintA5 flyers double sided 200gsm gloss 1000 at 74Folder inserts A4 4pp 250gsm gloss  500 each of 3 (employer, student and careerchange)design at 173 per 500 = 519",01/02/2019,0000444713,112.50,Revenue,STONE CREATE LTD,130896
South Ribble Council,http://statistics.data.gov.uk/doc/local-authority/30UN,Development Enterprise & Comm Mgnt,Advertising,4842,zero items,01/02/2019,0000444713,173.00,Revenue,STONE CREATE LTD,130896
South Ribble Council,http://statistics.data.gov.uk/doc/local-authority/30UN,Area 1 - Penwortham Western Parishes,Waste Disposal Charges,5110,"Deliver 20yd low sided skip to Address REDACTED on18th April.Empty and return on 19th April, Please empty and return on 20th April.",01/02/2019,0000444673,360.00,Revenue,SUEZ  RECYCLING AND REC UK LTD 80005291,00038920
South Ribble Council,http://statistics.data.gov.uk/doc/local-authority/30UN,Information Services,Consultancy Fees,4541,Monthly retainer service to fulfil SRBC`s requirements 2.5 days per month beginning 1st February 2019 for 6 months,06/02/2019,0000444851,"1,500.00",Revenue,TechAlign,132535
South Ribble Council,http://statistics.data.gov.uk/doc/local-authority/30UN,Information Services,Consultancy Fees,4541,ICT Digital Strategy Project,06/02/2019,0000444852,"10,475.00",Revenue,TechAlign,132535
South Ribble Council,http://statistics.data.gov.uk/doc/local-authority/30UN,Area 2 - Waste Transport/Eastern & Central Teams,External Contractors Charges,4570,Spec repair PJ62 UCG JFC11903,06/02/2019,0000444736,640.88,Revenue,TERBERG MATEC UK LTD,00058625
South Ribble Council,http://statistics.data.gov.uk/doc/local-authority/30UN,Area 2 - Waste Transport/Eastern & Central Teams,Materials General,4040,1 PANEL - VX18KLC - JFC11938 - TD,15/02/2019,0000444902,326.32,Revenue,TERBERG MATEC UK LTD,00058625
South Ribble Council,http://statistics.data.gov.uk/doc/local-authority/30UN,Area 2 - Waste Transport/Eastern & Central Teams,Materials General,4040,1 x RIGHT HAND SUPPORT BRACKET - VO65KRE - 11982,13/02/2019,0000445047,276.11,Revenue,TERBERG MATEC UK LTD,00058625
South Ribble Council,http://statistics.data.gov.uk/doc/local-authority/30UN,Area 2 - Waste Transport/Eastern & Central Teams,Materials General,4040,1 X RIGHT HAND GREY PANEL - VO65KRE - 11982,13/02/2019,0000445047,329.27,Revenue,TERBERG MATEC UK LTD,00058625
South Ribble Council,http://statistics.data.gov.uk/doc/local-authority/30UN,Area 2 - Waste Transport/Eastern & Central Teams,Materials General,4040,1 RED LAMP - VO65KRE - 11982,13/02/2019,0000445047,38.56,Revenue,TERBERG MATEC UK LTD,00058625
South Ribble Council,http://statistics.data.gov.uk/doc/local-authority/30UN,Area 2 - Waste Transport/Eastern & Central Teams,Materials General,4040,SAFTEY ARM SENSOR CABLE - VO65KRE - 11982,13/02/2019,0000445047,45.31,Revenue,TERBERG MATEC UK LTD,00058625
South Ribble Council,http://statistics.data.gov.uk/doc/local-authority/30UN,Area 2 - Waste Transport/Eastern & Central Teams,Materials General,4040,RIGHT HAND SAFTEY ARM BRACKET - VO65KRE - 11982,13/02/2019,0000445047,127.72,Revenue,TERBERG MATEC UK LTD,00058625
South Ribble Council,http://statistics.data.gov.uk/doc/local-authority/30UN,Area 2 - Waste Transport/Eastern & Central Teams,Materials General,4040,RIGHT HAND HINGE - VO65KRE-11982,13/02/2019,0000445047,207.45,Revenue,TERBERG MATEC UK LTD,00058625
South Ribble Council,http://statistics.data.gov.uk/doc/local-authority/30UN,Property Services,Rep & Maint Premises,2020,"2018 / 2019 annual service contract for the outer, middle & inner bi-part slider, the double power swing door  at the civic centre",08/02/2019,0000444850,390.00,Revenue,THE AUTOMATIC DOOR COMPANY LTD,00108533
South Ribble Council,http://statistics.data.gov.uk/doc/local-authority/30UN,Information Services,Capital Expenditure,C234,"Moss Side DR design consultancy day, as per quote SQ105274",22/02/2019,0000445179,650.00,Revenue,The Networking People NW (t/a TNP),132331
South Ribble Council,http://statistics.data.gov.uk/doc/local-authority/30UN,HR & Communications,Training Expense-Course Fees,1408,6 SESSIONS FOR MH,01/02/2019,0000444836,300.00,Revenue,THE THERAPY COMPANY,131955
South Ribble Council,http://statistics.data.gov.uk/doc/local-authority/30UN,Property Services,Rep & Maint Premises,2020,Please attend Civic Centre and do the cabling works on the 3rd floor as per your quote TC1797/19 Category 6A Cabling System  ,08/02/2019,0000444786,"2,464.00",Revenue,TIS Networks,132417
South Ribble Council,http://statistics.data.gov.uk/doc/local-authority/30UN,Property Services,Rep & Maint Premises,2020,Please attend Civic Centre and do the cabling works on the 3rd floor as per your quote TC1797/19 Category 6A Cabling System  ,08/02/2019,0000444787,492.00,Revenue,TIS Networks,132417
South Ribble Council,http://statistics.data.gov.uk/doc/local-authority/30UN,Information Services,Peripherals,4247,Category 5E Cabling System (Old HR Room) as per quote ref. TC1826/19,06/02/2019,0000444905,398.00,Revenue,TIS Networks,132417
South Ribble Council,http://statistics.data.gov.uk/doc/local-authority/30UN,Neighbourhood Admin & Support,External Contractors Charges,4570,ANNUAL ODYSSEY LICENCE RENEWAL FUEL SYSTEM - MOSS SIDE DEPOT 3.3.19 - 2.3.20,08/02/2019,0000444229,"1,379.15",Revenue,TRISCAN SYSTEMS LIMITED,00108339
South Ribble Council,http://statistics.data.gov.uk/doc/local-authority/30UN,Area 1 - Penwortham Western Parishes,External Contractors Charges,4570,SIGN CLEANING THROUGHOUT THE BOROUGH (2 WEEKS - W/C 4.2.19 AND W/C 11.2.19 - 40 hours per week @18.50/hour),22/02/2019,0000445230,"1,480.00",Revenue,ULTRA CLEAN CONSERVATORIES,130034
South Ribble Council,http://statistics.data.gov.uk/doc/local-authority/30UN,Environmental Health,Consultancy Fees,4542,Order to cover samples for 18/19,08/02/2019,0000444986,392.80,Revenue,UNITED UTILITIES WATER PLC,130293
South Ribble Council,http://statistics.data.gov.uk/doc/local-authority/30UN,Property Services,Operational Furniture & Equip,4012,2018 / 2019 annual contract for the monthly rental of hot drinks machines at the civic centre including environmental charge.,06/02/2019,0000444709,322.09,Revenue,VENDING ENTERPRISES,00101501
South Ribble Council,http://statistics.data.gov.uk/doc/local-authority/30UN,Healthy Communities,Provisions,4311,Stock for vending machines,01/02/2019,0000444710,365.60,Revenue,VENDING ENTERPRISES,00101501
South Ribble Council,http://statistics.data.gov.uk/doc/local-authority/30UN,Property Services,Rep & Maint Premises,2020,Supply and fit a freestanding water cooler to the right hand corner of the kitchen in the 1st floor DWP. It will need to have a water pipe fitted ,27/02/2019,0000445248,395.00,Revenue,VENDING ENTERPRISES,00101501
South Ribble Council,http://statistics.data.gov.uk/doc/local-authority/30UN,Information Services,Peripherals,4247,,06/02/2019,0000444879,"1,783.00",Revenue,VODAFONE RE:CABLE & WIRELESS UK,130810
South Ribble Council,http://statistics.data.gov.uk/doc/local-authority/30UN,Revenues Plus,Balance Sheet,0001,,22/02/2019,0000445244,301.81,Revenue,Walton Le Dale Arts College & High School,132766
South Ribble Council,http://statistics.data.gov.uk/doc/local-authority/30UN,Property Services,Water Charges,2511,25/10/18 to 30/1/19,13/02/2019,0000444942,"2,334.94",Revenue,WATER PLUS,00029845
South Ribble Council,http://statistics.data.gov.uk/doc/local-authority/30UN,Property Services,Water Charges,2511,1/4/19 to 31/3,22/02/2019,0000445112,"3,863.68",Revenue,WATER PLUS,00029845
South Ribble Council,http://statistics.data.gov.uk/doc/local-authority/30UN,Property Services,Water Charges,2511,1/4/19 to 31/3,22/02/2019,0000445113,"1,847.19",Revenue,WATER PLUS,00029845
South Ribble Council,http://statistics.data.gov.uk/doc/local-authority/30UN,Property Services,Water Charges,2511,30/10/18 to 2019,22/02/2019,0000445187,423.93,Revenue,WATER PLUS,00029845
South Ribble Council,http://statistics.data.gov.uk/doc/local-authority/30UN,Property Services,Water Charges,2511,7/11/18 to 14/2/19,22/02/2019,0000445218,850.87,Revenue,WATER PLUS,00029845
South Ribble Council,http://statistics.data.gov.uk/doc/local-authority/30UN,Legal,Legal,4821,Charges for employment advice in January 2019,13/02/2019,0000445076,310.50,Revenue,WEIGHTMANS LLP,00120867
South Ribble Council,http://statistics.data.gov.uk/doc/local-authority/30UN,Regeneration,Other Misc,4851,Call outs to Bamber Bridge Tree after vandalism including Mobile Platform and Labour,06/02/2019,0000444503,295.00,Revenue,WESTFIELD TREE SERVICES LTD,00114226
South Ribble Council,http://statistics.data.gov.uk/doc/local-authority/30UN,Revenues Plus,Postage,4291,Mail Services Revenues Jan - March 2019,15/02/2019,0000445083,256.09,Revenue,WHISTL  UK LTD,131310
South Ribble Council,http://statistics.data.gov.uk/doc/local-authority/30UN,Area 3 - Parks/Leyland East West,Grounds Maint Cntrctrs Chgs,4657,6x signs for Holland House Playground @ 60 per sign.,06/02/2019,0000444132,360.00,Revenue,WOODSTOCK SIGNS,00039039
South Ribble Council,http://statistics.data.gov.uk/doc/local-authority/30UN,Neighbourhood Admin & Support,Operational Furniture & Equip,4019,63 x Standard rectangular plaque @25.00 each,13/02/2019,0000444953,"1,575.00",Revenue,WOODSTOCK SIGNS,00039039
South Ribble Council,http://statistics.data.gov.uk/doc/local-authority/30UN,Planning,Consultancy Fees,4541,Retail impact assessment for application 07/2018/8309/FUL,22/02/2019,0000445210,950.00,Revenue,WYG ENVIRONMENT TRANSPORT LIMITED,130177
South Ribble Council,http://statistics.data.gov.uk/doc/local-authority/30UN,Scrutiny,Operational Furniture & Equip,4010,"Usage for Members printers
Model:  C400
Serial No`s:   3355019038;  3355023701;  3355023701;  3355023728;  3355023736",06/02/2019,0000444445,307.50,Revenue,XERETEC OFFICE SYSTEMS LTD,00109325
South Ribble Council,http://statistics.data.gov.uk/doc/local-authority/30UN,Information Services,Peripherals,4248,ProPrint annual support & maintenance 01/04/19 - 31/03/20,08/02/2019,0000444981,"2,509.00",Revenue,XLPRINT SOFTWARE,00119658
South Ribble Council,http://statistics.data.gov.uk/doc/local-authority/30UN,Shared Assurance Services,Employee Related Insurance,1800,SRBC - ENGINEERING INSPECTION FEE 2019,15/02/2019,0000444980,"2,167.56",Revenue,Zurich Municipal Insurance plc,132190
